bitfinex/quotes_ETHUSD_20251218
["timestamp","ask_amount","ask_price","bid_price","bid_amount"]
[1766053347949,0.002,2860.0,2859.6,0.3585]
[1766053348155,3.49853769,2860.0,2859.7,1.3136]
[1766053348453,0.9195,2859.9,2859.4,0.75646233]
[1766053348653,3.49853769,2860.0,2859.4,0.75646233]
[1766053348654,3.49855735,2860.0,2859.4,0.9551]
[1766053348952,3.49855735,2860.0,2859.1,6.66303421]
[1766053348953,4.41807012,2860.0,2859.6,1.3136]
[1766053350443,4.72877012,2860.0,2859.6,1.3136]
[1766053350637,4.41615177,2859.9,2859.1,6.66303421]
[1766053350838,4.72685177,2859.9,2859.3,1.3136]
[1766053351038,3.80735177,2859.9,2859.3,1.3136]
[1766053351240,4.72685177,2859.9,2859.3,1.3136]
[1766053351431,4.41615177,2859.9,2859.3,1.3136]
[1766053351754,4.72685177,2859.9,2859.4,1.3136]
[1766053352056,0.9195,2859.8,2859.4,1.3136]
[1766053352351,1.2302,2859.8,2859.4,1.3136]
[1766053353160,4.72699248,2859.8,2859.4,1.3136]
[1766053354054,4.72699248,2859.8,2859.3,0.3585]
[1766053354256,4.72699248,2859.8,2859.3,1.3136]
[1766053354638,1.2302,2859.7,2859.2,1.06260497]
[1766053354955,1.2302,2859.7,2859.1,1.3671109]
[1766053355346,0.9195,2859.7,2859.2,0.3585]
[1766053355531,0.9195,2859.7,2859.3,1.3136]
[1766053359866,1.2302,2859.7,2859.3,1.3136]
[1766053360057,0.9195,2859.7,2859.3,1.3136]
[1766053361067,0.9195,2859.7,2859.3,1.3146]
[1766053361367,0.9215,2859.7,2859.3,1.3146]
[1766053363252,0.9215,2859.7,2859.4,0.3638]
[1766053363566,0.002,2859.7,2859.3,0.001]
[1766053363770,0.3107,2859.5,2859.3,0.001]
[1766053363981,1.2532,2859.3,2859.1,0.001]
[1766053364189,0.3107,2859.4,2859.1,0.001]
[1766053364391,0.73047025,2859.4,2859.0,0.001]
[1766053364544,1.2532,2859.3,2859.0,0.001]
[1766053364786,0.3107,2859.5,2859.0,0.001]
[1766053364992,1.2532,2859.4,2859.0,1.2997]
[1766053368459,0.9425,2859.4,2859.0,1.2997]
[1766053370054,3.87219984,2859.4,2858.9,0.001]
[1766053370259,10.86590204,2859.4,2858.7,0.001]
[1766053370431,0.03337741,2859.3,2858.5,0.001]
[1766053370935,7.36865094,2859.4,2858.5,0.3648]
[1766053371259,7.36865094,2859.4,2858.5,1.2997]
[1766053371435,1.2522,2859.2,2858.5,1.2997]
[1766053371761,1.08657805,2859.3,2858.5,1.2997]
[1766053372049,3.80730414,2859.1,2858.5,1.2997]
[1766053372353,0.9425,2858.9,2858.5,1.2997]
[1766053372532,1.2522,2858.9,2858.5,1.2997]
[1766053373949,1.2522,2858.9,2858.5,0.9359]
[1766053373950,0.9425,2858.9,2858.5,0.9359]
[1766053374253,1.2522,2859.1,2858.5,1.2997]
[1766053374457,4.74982438,2859.1,2858.5,1.2997]
[1766053376053,0.9425,2859.0,2858.5,1.2997]
[1766053376261,0.9425,2858.9,2858.5,1.2997]
[1766053377855,0.9425,2858.9,2858.6,0.3638]
[1766053378034,0.9425,2858.9,2858.6,1.2987]
[1766053378442,0.9425,2858.9,2858.5,0.001]
[1766053378647,1.2522,2858.9,2858.5,0.001]
[1766053379153,0.9425,2858.8,2858.5,0.001]
[1766053379451,3.49784933,2858.9,2858.5,0.001]
[1766053379452,0.3097,2858.7,2858.5,0.001]
[1766053379638,0.3097,2858.7,2858.4,0.001]
[1766053379825,0.9425,2858.6,2858.4,0.001]
[1766053380237,0.3097,2858.7,2858.4,0.001]
[1766053380443,1.2522,2858.7,2858.4,0.001]
[1766053381461,0.3087,2858.9,2858.4,0.3648]
[1766053381758,0.9425,2858.8,2858.4,1.2997]
[1766053382652,3.49766537,2859.1,2858.4,0.3648]
[1766053382830,3.49754914,2859.2,2858.6,0.3638]
[1766053383031,0.79375293,2859.1,2858.8,0.3638]
[1766053383256,0.79375293,2859.1,2858.8,1.2987]
[1766053383933,0.002,2859.0,2858.8,1.2987]
[1766053384130,0.002,2859.0,2858.5,0.9349]
[1766053384328,0.002,2859.0,2858.6,0.9349]
[1766053384630,0.002,2859.0,2858.7,0.3638]
[1766053385557,0.002,2859.0,2858.7,1.2987]
[1766053385863,0.002,2859.0,2858.7,0.9349]
[1766053386044,0.002,2859.0,2858.8,0.3638]
[1766053389137,0.002,2859.0,2858.7,1.2987]
[1766053390366,0.002,2859.0,2858.4,0.001]
[1766053390367,0.9445,2859.0,2858.6,0.3638]
[1766053390536,0.9445,2859.0,2858.6,1.2987]
[1766053392870,0.9445,2859.0,2858.6,1.77861286]
[1766053393170,0.002,2859.0,2858.7,0.3604]
[1766053393348,0.002,2859.0,2858.7,1.291]
[1766053394164,0.002,2859.0,2858.6,0.47991286]
[1766053394165,0.002,2859.0,2858.8,0.3604]
[1766053394375,0.002,2859.0,2858.8,1.291]
[1766053394967,0.0012,2859.0,2858.8,1.291]
[1766053395171,0.9638,2859.5,2858.9,1.291]
[1766053395351,0.9638,2859.4,2858.9,1.291]
[1766053395552,1.2737,2859.4,2858.8,1.81791027]
[1766053396253,1.2737,2859.3,2858.8,1.81791027]
[1766053396443,0.9865,2859.2,2858.8,1.81791027]
[1766053396856,0.9865,2859.1,2858.8,0.52691027]
[1766053397365,0.9865,2859.3,2858.9,0.358]
[1766053397573,0.002,2859.0,2858.9,1.3022]
[1766053397866,0.9865,2859.4,2858.9,1.83491865]
[1766053398066,0.3119,2859.4,2858.9,1.3022]
[1766053398275,1.2984,2859.5,2858.6,3.49814079]
[1766053398571,3.96142513,2859.6,2858.6,3.49814079]
[1766053398754,0.3119,2859.4,2858.6,3.49814079]
[1766053398942,0.9865,2859.1,2858.6,4.80034079]
[1766053399145,1.2984,2859.1,2858.7,1.49938252]
[1766053399472,0.9865,2859.1,2858.7,5.58366715]
[1766053399678,0.9865,2859.2,2858.8,1.3022]
[1766053399850,1.2984,2859.5,2858.9,0.358]
[1766053400057,1.2984,2859.5,2858.9,1.3022]
[1766053400371,0.9865,2859.4,2858.9,0.9442]
[1766053400560,1.2984,2859.4,2859.0,0.358]
[1766053400766,1.2984,2859.4,2859.0,1.3022]
[1766053402250,0.3119,2859.4,2859.0,1.3022]
[1766053402452,0.9865,2859.3,2859.0,1.3022]
[1766053403883,0.9865,2859.5,2858.9,1.3022]
[1766053404183,3.96326715,2859.7,2858.8,3.49794121]
[1766053404184,1.2984,2859.4,2859.0,1.3022]
[1766053404594,1.3004,2859.4,2859.0,1.3022]
[1766053405483,0.9885,2859.4,2859.0,1.3022]
[1766053405672,1.3004,2859.4,2858.8,1.3022]
[1766053406274,0.9865,2859.3,2858.8,1.3022]
[1766053406580,1.2984,2859.3,2858.8,1.53836264]
[1766053406881,1.2984,2859.3,2858.9,0.358]
[1766053408882,1.2984,2859.3,2858.9,1.3022]
[1766053413382,1.2984,2859.3,2858.9,1.3032]
[1766053413773,0.9865,2859.2,2858.9,0.359]
[1766053415086,0.9865,2859.2,2858.9,1.3032]
[1766053415581,0.9865,2859.2,2858.9,0.359]
[1766053416084,0.9865,2859.2,2858.9,0.001]
[1766053418285,1.2984,2859.3,2858.9,1.3032]
[1766053418583,1.2984,2859.3,2858.9,2.66399709]
[1766053418784,0.9865,2859.3,2858.9,2.66399709]
[1766053419165,0.9865,2859.3,2858.9,2.30599709]
[1766053419367,0.9865,2859.3,2859.0,0.358]
[1766053419558,0.9857,2859.3,2858.9,0.9452]
[1766053419755,1.2976,2859.3,2858.9,1.3032]
[1766053421490,0.3119,2859.3,2858.9,0.001]
[1766053421687,0.9865,2859.0,2858.9,0.001]
[1766053421886,0.3119,2859.1,2858.9,0.001]
[1766053421887,1.2984,2859.1,2858.9,0.001]
[1766053422269,0.9865,2859.1,2858.9,0.001]
[1766053422462,0.3119,2859.3,2858.9,0.001]
[1766053422661,0.9505,2859.2,2858.9,0.001]
[1766053425768,1.2624,2859.2,2858.9,0.001]
[1766053426698,0.3119,2859.2,2858.9,0.001]
[1766053426888,0.9505,2859.1,2858.9,0.001]
[1766053427087,0.002,2859.4,2858.9,0.001]
[1766053427402,0.002,2859.4,2859.1,0.3402]
[1766053427563,0.9525,2859.4,2859.1,1.3047]
[1766053427898,0.9525,2859.4,2859.0,7.91914023]
[1766053428098,0.002,2859.2,2859.0,7.91914023]
[1766053429998,0.9525,2859.4,2859.0,7.91914023]
[1766053430197,0.9525,2859.4,2859.1,1.54355897]
[1766053430995,0.002,2859.7,2859.2,6.61444023]
[1766053431199,0.002,2859.7,2859.5,0.3402]
[1766053431385,0.002,2859.7,2859.4,7.91914023]
[1766053431591,0.002,2859.7,2859.4,1.3047]
[1766053432266,0.9525,2859.7,2859.4,1.3047]
[1766053432466,0.9505,2859.6,2859.2,7.91914023]
[1766053432692,1.2624,2859.6,2859.2,9.27639456]
[1766053433001,0.9505,2859.6,2859.2,8.93619456]
[1766053433303,0.9505,2859.6,2859.3,0.3402]
[1766053433600,0.9505,2859.6,2859.3,1.3047]
[1766053433799,0.002,2859.7,2859.3,1.3047]
[1766053434001,1.2644,2859.7,2859.3,1.3047]
[1766053436200,0.3139,2859.7,2859.2,7.97169456]
[1766053436496,0.9505,2859.6,2859.2,9.27639456]
[1766053436701,1.2644,2859.7,2859.3,2.79767976]
[1766053438574,0.9525,2859.7,2859.4,1.3047]
[1766053438776,0.002,2859.7,2859.4,1.3047]
[1766053438975,0.002,2859.7,2859.5,1.3047]
[1766053440611,0.002,2859.7,2859.4,6.61444023]
[1766053440899,1.2644,2860.0,2859.6,1.3047]
[1766053440900,0.9525,2860.0,2859.6,1.3047]
[1766053441217,0.002,2860.0,2859.8,0.3402]
[1766053441388,0.002,2860.2,2860.0,0.3402]
[1766053441702,0.002,2860.4,2860.1,0.9645]
[1766053441906,0.002,2860.4,2860.3,0.3402]
[1766053442114,0.002,2860.6,2860.4,0.3402]
[1766053442277,0.002,2860.6,2860.3,1.3047]
[1766053442674,0.002,2860.6,2860.4,0.3402]
[1766053442978,0.002,2860.7,2860.4,0.3402]
[1766053443308,0.002,2860.9,2860.6,0.3402]
[1766053443483,0.002,2860.9,2860.7,1.3047]
[1766053444078,0.002,2860.9,2860.8,0.3402]
[1766053444278,0.0012,2860.9,2860.8,1.3047]
[1766053444889,0.002,2861.1,2860.5,6.9917723]
[1766053445184,0.002,2861.2,2861.1,1.3047]
[1766053445689,0.002,2861.2,2860.9,0.9645]
[1766053446024,1.2676,2861.5,2861.1,1.3047]
[1766053446384,0.9505,2861.7,2861.1,0.3402]
[1766053446684,0.9505,2861.7,2861.2,0.9645]
[1766053446996,0.9505,2861.7,2861.3,1.3047]
[1766053447308,1.2696,2861.7,2861.3,1.3047]
[1766053447705,3.49614388,2862.0,2861.3,0.3402]
[1766053447906,0.9505,2861.8,2861.0,10.10963538]
[1766053448112,1.2696,2861.8,2861.1,1.3047]
[1766053448309,1.74617439,2861.8,2861.2,1.3047]
[1766053448611,1.74617439,2861.8,2861.3,1.3047]
[1766053448789,1.2696,2861.8,2861.1,0.9645]
[1766053448991,1.2696,2861.8,2861.4,0.3402]
[1766053449198,0.002,2862.0,2861.4,1.3047]
[1766053449402,0.002,2862.0,2861.1,0.0525109]
[1766053449403,0.002,2862.0,2861.8,0.3402]
[1766053449580,0.002,2862.0,2861.8,1.3047]
[1766053449793,0.002,2862.0,2861.3,0.13999744]
[1766053449794,1.2696,2861.7,2861.3,0.13999744]
[1766053449983,0.9505,2861.7,2861.3,4.93954331]
[1766053450283,0.3191,2861.9,2861.4,1.3047]
[1766053450484,0.9505,2861.8,2861.4,1.3047]
[1766053450922,1.2696,2861.9,2861.5,0.3402]
[1766053451281,1.2696,2861.9,2861.5,1.3047]
[1766053451683,0.002,2861.7,2861.5,1.3047]
[1766053451884,0.002,2861.7,2861.3,1.10449744]
[1766053452085,0.002,2861.7,2861.4,1.3047]
[1766053453310,0.002,2861.7,2861.4,0.3402]
[1766053453511,0.9193,2861.6,2861.3,0.13999744]
[1766053454016,0.3211,2861.7,2860.9,1.2762]
[1766053454017,1.2384,2861.5,2860.9,1.2762]
[1766053454185,1.2384,2861.4,2861.0,3.83606252]
[1766053454390,0.9193,2861.4,2861.1,0.9193]
[1766053454582,0.3191,2861.6,2861.1,2.1955]
[1766053454915,1.2384,2861.6,2861.2,0.3408]
[1766053455084,0.9193,2861.6,2861.2,1.2762]
[1766053455286,0.002,2861.7,2861.3,4.43025402]
[1766053455517,0.002,2861.7,2861.3,4.77105402]
[1766053455518,0.9213,2861.7,2861.3,4.77105402]
[1766053455717,0.9213,2861.7,2861.3,4.77110709]
[1766053455918,0.002,2861.7,2861.4,0.9354]
[1766053456112,0.9213,2862.0,2861.6,1.2762]
[1766053456421,0.002,2862.0,2861.4,8.98971839]
[1766053456924,0.002,2862.0,2861.5,1.2762]
[1766053457091,0.002,2862.0,2861.4,8.98971839]
[1766053457423,0.002,2862.0,2861.7,0.9354]
[1766053457626,1.2424,2862.0,2861.4,2.1975]
[1766053457927,1.2404,2861.8,2861.4,1.2621]
[1766053458631,0.9193,2861.8,2861.4,1.2621]
[1766053458932,0.9193,2861.8,2861.4,2.1975]
[1766053459613,0.9193,2861.8,2861.4,5.69225461]
[1766053459814,0.002,2862.0,2861.6,0.9354]
[1766053460129,0.002,2862.0,2861.7,1.2762]
[1766053460314,0.9213,2862.0,2861.4,6.6109808]
[1766053460634,0.9193,2861.9,2861.4,3.11622619]
[1766053460929,1.2404,2861.8,2861.4,0.9213]
[1766053461432,1.2404,2861.8,2861.2,4.77118319]
[1766053461621,1.2404,2861.8,2861.2,5.8211236]
[1766053461824,0.9193,2861.8,2861.4,0.3408]
[1766053462002,0.9193,2861.8,2861.4,1.2762]
[1766053464240,1.2424,2862.0,2861.4,4.43018937]
[1766053464444,1.2424,2862.0,2861.7,1.2762]
[1766053464445,0.002,2862.0,2861.7,1.2762]
[1766053465538,0.002,2862.0,2861.7,0.3408]
[1766053465723,0.002,2862.0,2861.6,0.3408]
[1766053465930,0.002,2862.0,2861.6,1.2762]
[1766053466128,0.002,2862.0,2861.7,0.3408]
[1766053466329,0.002,2862.0,2861.7,1.2762]
[1766053466514,0.002,2861.8,2861.7,1.2762]
[1766053466929,0.002,2862.0,2861.8,0.3408]
[1766053467118,0.002,2862.0,2861.8,1.2762]
[1766053467726,0.002,2862.0,2861.8,0.3408]
[1766053468537,0.002,2862.0,2861.7,0.3408]
[1766053468717,0.002,2862.0,2861.7,1.2762]
[1766053469109,0.0012,2862.0,2861.7,1.2762]
[1766053470220,0.0012,2862.0,2861.5,0.13998372]
[1766053470221,0.0012,2862.0,2861.6,1.2762]
[1766053470420,0.9205,2862.0,2861.6,1.2762]
[1766053470621,1.2416,2862.0,2861.6,0.3408]
[1766053471022,0.9193,2861.9,2861.5,1.41618372]
[1766053471219,0.0012,2862.0,2861.1,0.001]
[1766053471442,6.96776336,2862.0,2861.1,0.001]
[1766053471644,1.2404,2861.9,2861.1,0.001]
[1766053471808,0.3211,2861.8,2861.1,0.001]
[1766053472012,0.9193,2861.5,2861.1,0.001]
[1766053472310,1.2404,2861.4,2861.1,0.001]
[1766053473235,0.47349653,2861.4,2860.8,1.2762]
[1766053473405,0.9193,2861.2,2860.6,1.2762]
[1766053473906,1.2394,2861.1,2860.6,1.2762]
[1766053474109,0.3201,2861.1,2860.5,1.2762]
[1766053474310,0.9193,2861.2,2860.7,1.2762]
[1766053474541,1.2394,2861.2,2860.7,1.2762]
[1766053475244,0.9193,2861.1,2860.7,1.2762]
[1766053475445,0.9193,2861.1,2860.7,0.3408]
[1766053475614,1.2394,2861.1,2860.5,4.77307758]
[1766053475948,0.9193,2861.0,2860.6,0.65187172]
[1766053476117,3.49493884,2861.3,2860.5,0.001]
[1766053476118,1.2394,2860.8,2860.5,0.001]
[1766053476441,1.2394,2861.1,2860.5,0.001]
[1766053476642,3.49507213,2861.2,2860.5,0.001]
[1766053477012,0.9193,2860.7,2860.2,2.32641608]
[1766053477343,0.9193,2860.4,2860.0,0.001]
[1766053477544,0.3201,2860.5,2860.0,0.001]
[1766053477846,1.2394,2860.2,2860.0,0.001]
[1766053478044,1.2394,2860.4,2860.0,0.001]
[1766053478251,0.3201,2860.4,2860.0,0.001]
[1766053478434,1.2394,2860.4,2860.0,0.001]
[1766053478819,3.49564791,2860.7,2859.7,3.49679898]
[1766053479151,0.3201,2860.4,2859.7,4.43408506]
[1766053479313,0.9193,2860.3,2859.7,4.77488506]
[1766053479512,0.9193,2860.3,2859.7,5.71028506]
[1766053480154,0.3201,2860.4,2859.9,0.3408]
[1766053480452,0.9193,2860.4,2860.0,0.3408]
[1766053480951,1.2394,2860.4,2859.8,4.77290777]
[1766053481154,1.2394,2860.4,2859.9,1.84721938]
[1766053481851,0.9193,2860.3,2859.9,1.84721938]
[1766053482630,0.9193,2860.3,2859.9,1.84821938]
[1766053483553,3.49577778,2860.6,2859.9,0.57201938]
[1766053483862,3.52915519,2860.6,2859.6,4.54729986]
[1766053484064,0.3201,2860.4,2859.6,3.49692567]
[1766053484239,1.2284,2860.1,2859.6,4.80092567]
[1766053484555,1.2284,2860.1,2859.6,2.24420946]
[1766053484720,1.2284,2860.0,2859.4,0.001]
[1766053484925,0.9083,2859.7,2859.4,0.001]
[1766053485120,1.2284,2859.7,2859.4,0.001]
[1766053485327,0.9083,2859.7,2859.4,0.001]
[1766053485527,0.3201,2859.9,2859.4,0.001]
[1766053485746,1.2284,2859.9,2859.4,1.305]
[1766053486151,0.9083,2859.8,2859.4,0.001]
[1766053486357,0.3191,2859.5,2858.9,0.9673]
[1766053486653,1.2274,2859.8,2858.9,0.001]
[1766053486855,3.49672697,2859.9,2858.9,0.001]
[1766053487154,1.2274,2859.6,2858.9,1.305]
[1766053487545,1.2274,2859.6,2859.0,1.304]
[1766053487749,0.9083,2860.0,2859.3,0.3377]
[1766053487949,0.9083,2860.0,2859.4,1.304]
[1766053488261,1.2274,2859.9,2859.2,1.304]
[1766053488760,0.9083,2859.9,2859.1,1.05066848]
[1766053488933,1.2274,2860.1,2859.3,0.9663]
[1766053489132,3.4961926,2860.3,2859.7,0.9663]
[1766053489133,0.9083,2860.3,2859.7,0.9663]
[1766053489337,0.9083,2860.3,2859.7,1.304]
[1766053489542,0.9083,2860.2,2859.7,1.304]
[1766053489770,0.3191,2860.1,2859.3,0.9663]
[1766053489932,0.3191,2860.1,2859.5,1.304]
[1766053493038,0.9083,2860.2,2859.6,1.304]
[1766053493239,1.2274,2860.2,2859.6,1.304]
[1766053493533,1.2274,2860.1,2859.6,1.304]
[1766053493732,1.2266,2860.1,2859.6,1.304]
[1766053495960,3.49608159,2860.4,2859.4,1.05062801]
[1766053496169,0.9083,2859.8,2859.4,1.05062801]
[1766053496468,0.9083,2859.7,2859.4,1.05062801]
[1766053496971,1.2274,2859.9,2859.4,1.05062801]
[1766053497269,0.9083,2859.8,2859.4,1.38832801]
[1766053497448,1.2274,2859.8,2859.4,1.38832801]
[1766053497648,1.2274,2859.8,2859.4,1.97353131]
[1766053498571,1.2274,2859.8,2859.4,1.97453131]
[1766053498745,1.2274,2859.8,2859.4,1.38932801]
[1766053500277,1.2274,2859.8,2859.4,0.3387]
[1766053500447,0.3191,2859.8,2859.5,1.05063169]
[1766053500641,0.444,2859.6,2859.1,0.001]
[1766053500966,0.03337741,2860.1,2859.2,3.49745787]
[1766053500967,3.49642899,2860.1,2859.2,3.49745787]
[1766053501143,0.7125,2859.8,2859.2,3.49745787]
[1766053501345,0.7125,2859.8,2859.2,4.46375787]
[1766053501544,0.7125,2859.8,2859.1,4.54916823]
[1766053501545,0.444,2859.8,2859.1,4.54916823]
[1766053501744,0.2685,2859.7,2859.1,4.54923473]
[1766053501967,0.7125,2859.7,2859.1,4.54923473]
[1766053502170,0.7125,2859.7,2859.1,5.48443964]
[1766053502372,0.7125,2859.7,2859.1,6.78843964]
[1766053502669,0.2685,2859.7,2859.2,1.304]
[1766053502869,0.2685,2859.7,2859.1,5.73780795]
[1766053503074,0.2685,2859.7,2859.2,0.444]
[1766053503275,0.7125,2859.7,2859.2,2.58555154]
[1766053505657,0.7125,2859.7,2859.2,6.08301066]
[1766053506545,0.7125,2859.7,2859.2,2.58555154]
[1766053507574,0.2685,2859.6,2859.2,2.58555154]
[1766053507879,0.7125,2859.6,2859.2,2.58555154]
[1766053508078,0.2685,2859.6,2859.2,2.58555154]
[1766053508479,3.4966378,2859.9,2859.2,0.444]
[1766053508652,0.444,2859.9,2859.2,0.444]
[1766053508853,0.35318064,2860.0,2859.2,0.444]
[1766053508854,0.2685,2859.6,2859.2,0.444]
[1766053509066,0.7125,2859.6,2859.2,0.444]
[1766053511082,0.7125,2859.5,2859.2,0.444]
[1766053511286,0.375,2859.7,2859.1,0.001]
[1766053511486,0.375,2859.6,2859.1,0.001]
[1766053511778,0.375,2859.6,2859.1,4.46487917]
[1766053512079,0.375,2859.6,2859.2,1.304]
[1766053512285,0.375,2859.6,2859.1,1.316]
[1766053512790,0.374,2859.4,2858.9,0.001]
[1766053512994,0.373,2859.2,2858.5,0.001]
[1766053513292,0.373,2859.2,2858.5,0.3661]
[1766053513794,0.373,2859.2,2858.5,3.86443217]
[1766053514769,0.373,2859.2,2858.5,0.3661]
[1766053514966,0.373,2859.2,2858.5,3.86443796]
[1766053515377,0.373,2859.2,2859.1,0.001]
[1766053517074,3.49717334,2859.5,2859.1,0.001]
[1766053517265,0.34971733,2859.4,2859.1,0.001]
[1766053518471,0.34891733,2859.4,2859.1,0.001]
[1766053519692,3.4988761,2859.7,2859.1,0.001]
[1766053520593,0.002,2859.7,2859.1,0.001]
[1766053523101,0.002,2859.7,2859.1,1.3024]
[1766053523268,0.375,2859.7,2859.2,1.3014]
[1766053523610,0.002,2859.7,2859.3,0.3651]
[1766053523780,3.49662575,2859.9,2859.1,0.001]
[1766053523971,0.73465166,2859.8,2859.1,0.001]
[1766053524167,0.73465166,2859.8,2859.4,0.9363]
[1766053524368,0.73465166,2859.8,2859.4,1.3014]
[1766053525295,4.23143685,2859.8,2859.4,1.3014]
[1766053525489,4.60443685,2859.8,2859.4,1.3014]
[1766053525688,0.81010626,2859.7,2859.4,1.3014]
[1766053525879,0.81010626,2859.7,2859.2,0.9363]
[1766053526067,0.81010626,2859.7,2859.3,1.3014]
[1766053527310,0.81010626,2859.7,2859.1,0.001]
[1766053527599,3.86978519,2859.8,2859.2,1.3014]
[1766053527781,3.86978519,2859.8,2859.1,0.001]
[1766053527974,3.86978519,2859.8,2859.3,0.3651]
[1766053528186,3.49678519,2859.8,2859.2,1.3014]
[1766053528495,3.49678519,2859.8,2859.5,0.3651]
[1766053528691,0.34967852,2859.7,2859.5,1.3014]
[1766053529193,0.34967852,2859.7,2859.1,0.001]
[1766053529500,3.49667008,2859.9,2859.5,0.3651]
[1766053529680,3.49667008,2859.9,2859.5,1.3014]
[1766053529884,0.002,2859.7,2859.5,1.3014]
[1766053531801,0.002,2859.7,2859.5,0.3651]
[1766053531992,0.002,2859.7,2859.3,0.9363]
[1766053532302,0.002,2859.7,2859.4,1.3014]
[1766053532795,0.002,2859.7,2859.2,1.3014]
[1766053533100,0.002,2859.7,2859.1,0.001]
[1766053533303,3.4984552,2860.1,2859.3,0.9363]
[1766053533494,7.3699104,2860.1,2859.5,1.3014]
[1766053534103,0.375,2860.0,2859.5,1.3014]
[1766053534287,0.375,2860.0,2859.4,1.05078993]
[1766053534613,0.73699104,2859.9,2859.4,1.05078993]
[1766053534819,0.002,2860.1,2859.4,1.05078993]
[1766053535021,0.002,2860.1,2859.6,0.3651]
[1766053535197,0.002,2860.1,2859.8,0.3651]
[1766053535394,0.002,2860.1,2859.4,1.05078993]
[1766053535395,0.002,2860.1,2859.9,1.3014]
[1766053536817,3.49795962,2860.5,2860.1,0.9363]
[1766053537007,3.84775558,2860.5,2860.2,0.3651]
[1766053539516,0.002,2860.5,2860.2,0.3651]
[1766053539719,0.002,2860.5,2860.4,0.3651]
[1766053540028,0.002,2860.5,2860.2,1.3014]
[1766053540591,0.002,2860.5,2860.1,1.3014]
[1766053540793,0.002,2860.5,2860.2,0.3651]
[1766053541104,0.73904909,2860.5,2860.0,1.05053603]
[1766053541302,0.41037741,2860.4,2859.8,1.3014]
[1766053543322,3.87225314,2860.4,2859.8,1.3014]
[1766053543524,0.3762,2860.4,2859.8,1.3014]
[1766053543694,0.3762,2860.4,2859.9,0.9906]
[1766053543891,0.3762,2860.4,2859.9,1.3604]
[1766053544126,0.3762,2860.4,2859.9,0.9906]
[1766053544427,0.3762,2860.4,2860.0,0.3698]
[1766053544726,0.3762,2860.4,2860.0,1.3604]
[1766053545828,3.49789815,2860.5,2859.8,1.3604]
[1766053545829,0.002,2860.5,2859.8,1.3604]
[1766053546025,0.002,2860.5,2859.9,0.59078397]
[1766053546228,3.4978952,2860.5,2860.2,0.3698]
[1766053546798,0.002,2860.5,2860.2,0.3698]
[1766053547925,0.002,2860.5,2860.3,0.3698]
[1766053549528,0.002,2860.5,2860.2,0.9906]
[1766053549731,0.002,2860.5,2860.2,1.3604]
[1766053550210,0.002,2860.5,2860.3,0.3698]
[1766053550410,0.002,2860.5,2860.3,1.3604]
[1766053551824,0.002,2860.5,2860.1,0.001]
[1766053552032,0.002,2860.5,2860.2,1.3604]
[1766053557636,0.002,2860.5,2860.2,0.3698]
[1766053558137,0.002,2860.5,2860.3,0.3698]
[1766053561744,0.002,2860.5,2860.2,1.3604]
[1766053562443,0.002,2860.5,2860.2,0.3698]
[1766053562738,0.73894958,2860.5,2860.1,1.3614]
[1766053564148,4.23489116,2860.5,2860.1,0.9916]
[1766053564347,4.23489116,2860.5,2860.1,1.3614]
[1766053566850,4.61109116,2860.5,2860.1,1.3614]
[1766053567853,4.61029116,2860.5,2860.1,1.3614]
[1766053568024,4.23409116,2860.5,2860.1,0.9916]
[1766053568226,4.61029116,2860.5,2860.1,1.3614]
[1766053568422,0.0012,2860.5,2860.2,1.3604]
[1766053569133,0.0012,2860.5,2860.1,0.001]
[1766053569332,0.0012,2860.5,2860.2,0.9906]
[1766053569532,0.0012,2860.5,2860.3,1.3604]
[1766053569943,0.0012,2860.5,2860.1,0.001]
[1766053570132,0.0012,2860.5,2860.2,1.3604]
[1766053570536,0.0012,2860.5,2860.1,0.001]
[1766053570736,0.0012,2860.5,2860.2,1.3604]
[1766053574956,0.0012,2860.5,2860.3,0.3604]
[1766053575137,0.0012,2860.5,2860.3,1.2834]
[1766053575665,0.0012,2860.5,2860.2,1.2834]
[1766053575868,0.0012,2860.5,2860.1,0.001]
[1766053576028,3.49560651,2860.8,2860.2,1.2834]
[1766053576231,4.8935431,2860.8,2860.3,0.3604]
[1766053576431,5.2697431,2860.8,2860.4,0.923]
[1766053576854,5.2697431,2860.8,2860.4,1.2834]
[1766053577160,1.77413659,2860.8,2860.4,1.2834]
[1766053577339,0.3762,2860.8,2860.4,1.2834]
[1766053577863,0.3762,2860.8,2860.1,0.001]
[1766053578156,3.49746772,2860.9,2860.1,0.001]
[1766053578342,3.87366772,2860.9,2860.1,0.001]
[1766053578532,3.87366772,2860.9,2860.2,1.2834]
[1766053578733,3.87366772,2860.9,2860.1,0.001]
[1766053578934,3.87366772,2860.9,2860.3,1.2834]
[1766053579333,3.87366772,2860.9,2860.1,0.45591465]
[1766053579562,3.87366772,2860.9,2860.2,1.2834]
[1766053579856,0.3762,2860.8,2860.2,1.2834]
[1766053580559,3.49746772,2860.9,2860.2,1.2834]
[1766053580766,3.87178934,2860.8,2860.2,1.2834]
[1766053582539,0.3762,2860.8,2860.2,1.2834]
[1766053583770,3.871732,2860.8,2860.2,1.2834]
[1766053585668,0.3762,2860.8,2860.2,0.923]
[1766053585980,0.3762,2860.8,2860.3,0.3604]
[1766053586165,0.58658472,2860.8,2860.3,1.2834]